fUSD/lending_fUSD_20240423
["ID","MTS","AMOUNT","RATE_DAILY","PERIOD"]
[323271043,1713861041672,-500.0,0.00011891,2]
[323271044,1713861041682,-588.37,0.00011891,2]
[323271045,1713861041691,-500.0,0.00011891,2]
[323271046,1713861041700,-500.0,0.00011891,2]
[323271047,1713861041709,-500.0,0.00011891,2]
[323271048,1713861041718,-500.0,0.00011891,2]
[323271049,1713861041728,-500.0,0.00011891,2]
[323271050,1713861041737,-505.26171624,0.00011891,2]
[323271051,1713861041746,-500.0,0.00011891,2]
[323271052,1713861041756,-504.91672357,0.00011891,2]
[323271053,1713861041765,-500.0,0.00011891,2]
[323271054,1713861041775,-624.96617444,0.00011891,2]
[323271055,1713861041785,-500.0,0.00011891,2]
[323271056,1713861041794,-500.0,0.00011891,2]
[323271057,1713861041803,-500.0,0.00011891,2]
[323271058,1713861041812,-500.0,0.00011891,2]
[323271059,1713861041822,-529.88033474,0.00011891,2]
[323271060,1713861041833,-500.0,0.00011891,2]
[323271061,1713861041842,-500.0,0.00011891,2]
[323271062,1713861041852,-776.58,0.00011891,2]
[323271064,1713861041861,-500.0,0.00011891,2]
[323271066,1713861041870,-506.00049359,0.00011891,2]
[323271068,1713861041879,-500.0,0.00011891,2]
[323271069,1713861041888,-500.0,0.00011891,2]
[323271070,1713861041898,-500.0,0.00011891,2]
[323271071,1713861041907,-500.0,0.00011891,2]
[323271072,1713861041916,-500.0,0.00011891,2]
[323271073,1713861041926,-500.0,0.00011891,2]
[323271074,1713861041935,-540.85,0.00011891,2]
[323271075,1713861041945,-501.98197262,0.00011891,2]
[323271076,1713861041954,-500.0,0.00011891,2]
[323271077,1713861041964,-500.0,0.00011891,2]
[323271078,1713861041973,-500.0,0.00011891,2]
[323271079,1713861041983,-500.0,0.00011891,2]
[323271080,1713861041992,-555.3901913,0.00011891,2]
[323271081,1713861042002,-500.0,0.00011891,2]
[323271082,1713861042011,-527.3631521,0.00011891,2]
[323271083,1713861042020,-503.91555752,0.00011891,2]
[323271084,1713861042030,-500.0,0.00011891,2]
[323271085,1713861042039,-500.0,0.00011891,2]
[323271086,1713861042049,-501.21823171,0.00011891,2]
[323271087,1713861042059,-751.1,0.00011891,2]
[323271088,1713861042068,-500.0,0.00011891,2]
[323271089,1713861042079,-500.0,0.00011891,2]
[323271090,1713861042089,-500.0,0.00011891,2]
[323271091,1713861042098,-502.36814552,0.00011891,2]
[323271092,1713861042107,-500.0,0.00011891,2]
[323271093,1713861042117,-500.0,0.00011891,2]
[323271094,1713861042127,-500.0,0.00011891,2]
[323271095,1713861042136,-500.0,0.00011891,2]
[323271096,1713861042146,-500.0,0.00011891,2]
[323271097,1713861042155,-500.0,0.00011891,2]
[323271098,1713861042164,-500.0,0.00011891,2]
[323271099,1713861042174,-1061.24,0.00011891,2]
[323271100,1713861042183,-1683.14,0.00011891,2]
[323271101,1713861042192,-500.0,0.00011891,2]
[323271102,1713861042202,-656.1,0.00011891,2]
[323271103,1713861042211,-501.08256497,0.00011891,2]
[323271104,1713861042220,-421.95552954,0.00011891,2]
[323271105,1713861042229,-501.86128044,0.00011891,2]
[323271106,1713861042239,-500.0,0.00011891,2]
[323271107,1713861042248,-328.60425986,0.00011891,2]
[323271108,1713861042258,-615.23689345,0.00011891,2]
[323271109,1713861042267,-518.88124678,0.00011891,2]
[323271110,1713861042276,-500.0,0.00011891,2]
[323271111,1713861042285,-500.0,0.00011891,2]
[323271112,1713861042294,-502.42167712,0.00011891,2]
[323271113,1713861042303,-500.0,0.00011891,2]
[323271114,1713861042312,-500.0,0.00011891,2]
[323271115,1713861042321,-500.0,0.00011891,2]
[323271116,1713861042331,-500.0,0.00011891,2]
[323271117,1713861042341,-506.47935853,0.00011891,2]
[323271118,1713861042350,-543.08,0.00011891,2]
[323271119,1713861042359,-500.0,0.00011891,2]
[323271120,1713861042368,-500.90250241,0.00011891,2]
[323271121,1713861042378,-500.0,0.00011891,2]
[323271122,1713861042387,-150.0,0.00011891,2]
[323271123,1713861042402,-500.0,0.00011891,2]
[323271124,1713861042411,-500.0,0.00011891,2]
[323271125,1713861042420,-500.0,0.00011891,2]
[323271126,1713861042430,-500.0,0.00011891,2]
[323271127,1713861042440,-500.0,0.00011891,2]
[323271128,1713861042449,-500.0,0.00011891,2]
[323271129,1713861042458,-500.0,0.00011891,2]
[323271130,1713861042468,-501.14815085,0.00011891,2]
[323271131,1713861042477,-500.0,0.00011891,2]
[323271132,1713861042487,-503.32350494,0.00011891,2]
[323271134,1713861042495,-500.0,0.00011891,2]
[323271135,1713861042505,-601.0,0.00011891,2]
[323271136,1713861042514,-500.0,0.00011891,2]
[323271137,1713861042523,-581.26634517,0.00011891,2]
[323271138,1713861042532,-500.0,0.00011891,2]
[323271139,1713861042541,-507.62238835,0.00011891,2]
[323271140,1713861042550,-528.19,0.00011891,2]
[323271141,1713861042559,-503.13657075,0.00011891,2]
[323271142,1713861042568,-500.0,0.00011891,2]
[323271143,1713861042577,-529.1,0.00011891,2]
[323271144,1713861042586,-500.0,0.00011891,2]
[323271145,1713861042595,-1140.0,0.00011891,2]
[323271146,1713861042604,-502.56897386,0.00011891,2]
[323271147,1713861042613,-500.0,0.00011891,2]
[323271148,1713861042623,-500.0,0.00011891,2]
[323271149,1713861042632,-533.58956418,0.00011891,2]
[323271150,1713861042641,-503.25539977,0.00011891,2]
[323271151,1713861042650,-500.0,0.00011891,2]
[323271152,1713861042659,-530.32,0.00011891,2]
[323271153,1713861042669,-500.0,0.00011891,2]
[323271154,1713861042678,-504.09832341,0.00011891,2]
[323271155,1713861042688,-500.0,0.00011891,2]
[323271156,1713861042698,-258.4555924,0.00011891,2]
[323271157,1713861042708,-304.67845089,0.00011891,2]
[323271158,1713861042718,-500.0,0.00011891,2]
[323271159,1713861042727,-613.3092166,0.00011891,2]
[323271160,1713861042736,-877.09,0.00011891,2]
[323271162,1713861042746,-500.0,0.00011891,2]
[323271165,1713861042755,-500.0,0.00011891,2]
[323271167,1713861042763,-500.0,0.00011891,2]
[323271170,1713861042773,-500.0,0.00011891,2]
[323271173,1713861042782,-501.98009169,0.00011891,2]
[323271175,1713861042791,-500.0,0.00011891,2]
[323271177,1713861042800,-500.0,0.00011891,2]
[323271179,1713861042809,-370.58841214,0.00011891,2]
[323271181,1713861042818,-500.0,0.00011891,2]
[323271183,1713861042829,-500.0,0.00011891,2]
[323271185,1713861042838,-500.0,0.00011891,2]
[323271187,1713861042848,-500.0,0.00011891,2]
[323271189,1713861042856,-500.0,0.00011891,2]
[323271191,1713861042866,-500.0,0.00011891,2]
[323271193,1713861042875,-500.0,0.00011891,2]
[323271195,1713861042885,-500.0,0.00011891,2]
[323271197,1713861042894,-505.00928051,0.00011891,2]
[323271199,1713861042903,-500.0,0.00011891,2]
[323271200,1713861042913,-500.0,0.00011891,2]
[323271201,1713861042922,-500.0,0.00011891,2]
[323271202,1713861042932,-500.0,0.00011891,2]
[323271203,1713861042941,-500.0,0.00011891,2]
[323271204,1713861042951,-500.0,0.00011891,2]
[323271205,1713861042960,-500.0,0.00011891,2]
[323271206,1713861042969,-500.0,0.00011891,2]
[323271207,1713861042979,-500.0,0.00011891,2]
[323271208,1713861042988,-500.0,0.00011891,2]
[323271209,1713861042997,-226.35515461,0.00011891,2]
[323271210,1713861043006,-500.0,0.00011891,2]
[323271211,1713861043015,-1027.83,0.00011891,2]
[323271212,1713861043024,-1006.21,0.00011891,2]
[323271213,1713861043034,-500.0,0.00011891,2]
[323271214,1713861043044,-460.27817615,0.00011891,2]
[323271215,1713861043054,-500.0,0.00011891,2]
[323271216,1713861043063,-500.0,0.00011891,2]
[323271217,1713861043072,-503.58604067,0.00011891,2]
[323271218,1713861043083,-500.0,0.00011891,2]
[323271219,1713861043092,-500.0,0.00011891,2]
[323271220,1713861043101,-544.34,0.00011891,2]
[323271221,1713861043110,-500.0,0.00011891,2]
[323271222,1713861043119,-500.0,0.00011891,2]
[323271223,1713861043128,-500.0,0.00011891,2]
[323271224,1713861043137,-500.0,0.00011891,2]
[323271225,1713861043146,-500.0,0.00011891,2]
[323271226,1713861043155,-500.0,0.00011891,2]
[323271227,1713861043164,-500.0,0.00011891,2]
[323271228,1713861043173,-1051.92,0.00011891,2]
[323271229,1713861043183,-500.0,0.00011891,2]
[323271230,1713861043192,-500.0,0.00011891,2]
[323271231,1713861043201,-500.0,0.00011891,2]
[323271232,1713861043210,-500.0,0.00011891,2]
[323271233,1713861043220,-299.68584755,0.00011891,2]
[323271234,1713861043229,-920.47,0.00011891,2]
[323271235,1713861043238,-500.0,0.00011891,2]
[323271236,1713861043247,-500.0,0.00011891,2]
[323271237,1713861043256,-500.0,0.00011891,2]
[323271238,1713861043265,-793.09,0.00011891,2]
[323271239,1713861043275,-500.0,0.00011891,2]
[323271240,1713861043284,-500.0,0.00011891,2]
[323271241,1713861043293,-1178.1,0.00011891,2]
[323271242,1713861043302,-500.0,0.00011891,2]
[323271243,1713861043312,-506.6,0.00011891,2]
[323271244,1713861043321,-500.0,0.00011891,2]
[323271245,1713861043331,-576.54757018,0.00011891,2]
[323271246,1713861043340,-500.0,0.00011891,2]
[323271247,1713861043349,-500.0,0.00011891,2]
[323271248,1713861043358,-1105.07,0.00011891,2]
[323271249,1713861043367,-500.0,0.00011891,2]
[323271250,1713861043377,-500.0,0.00011891,2]
[323271251,1713861043386,-1032.0,0.00011891,2]
[323271252,1713861043399,-509.14764831,0.00011891,2]
[323271253,1713861043409,-500.0,0.00011891,2]
[323271254,1713861043418,-500.0,0.00011891,2]
[323271255,1713861043427,-500.0,0.00011891,2]
[323271256,1713861043437,-500.0,0.00011891,2]
[323271257,1713861043446,-500.33238296,0.00011891,2]
[323271258,1713861043456,-500.0,0.00011891,2]
[323271259,1713861043466,-500.95671944,0.00011891,2]
[323271260,1713861043476,-500.0,0.00011891,2]
[323271261,1713861043486,-500.0,0.00011891,2]
[323271262,1713861043495,-500.0,0.00011891,2]
[323271264,1713861043504,-612.64,0.00011891,2]
[323271266,1713861043513,-500.0,0.00011891,2]
[323271268,1713861043523,-500.0,0.00011891,2]
[323271270,1713861043532,-500.0,0.00011891,2]
[323271272,1713861043541,-500.0,0.00011891,2]
[323271274,1713861043550,-500.0,0.00011891,2]
[323271276,1713861043559,-500.0,0.00011891,2]
[323271278,1713861043568,-1010.88,0.00011891,2]
[323271280,1713861043577,-500.0,0.00011891,2]
[323271282,1713861043586,-500.0,0.00011891,2]
[323271284,1713861043595,-500.0,0.00011891,2]
[323271286,1713861043604,-500.0,0.00011891,2]
[323271288,1713861043613,-904.08,0.00011891,2]
[323271290,1713861043622,-500.0,0.00011891,2]
[323271292,1713861043631,-500.0,0.00011891,2]
[323271294,1713861043640,-500.0,0.00011891,2]
[323271296,1713861043649,-508.48167479,0.00011891,2]
[323271298,1713861043657,-958.87,0.00011891,2]
[323271300,1713861043666,-500.0,0.00011891,2]
[323271302,1713861043676,-389.3252772,0.00011891,2]
[323271304,1713861043685,-55478.85,0.00011891,2]
[323271306,1713861043694,-500.0,0.00011891,2]
[323271308,1713861043703,-3707.64,0.00011891,2]
[323271310,1713861043712,-500.0,0.00011891,2]
[323271312,1713861043721,-396.12675401,0.00011891,2]
[323271313,1713861043730,-500.0,0.00011891,2]
[323271314,1713861043738,-500.0,0.00011891,2]
[323271315,1713861043747,-500.0,0.00011891,2]
[323271316,1713861043756,-500.0,0.00011891,2]
[323271317,1713861043765,-500.0,0.00011891,2]
[323271318,1713861043774,-500.0,0.00011891,2]
[323271319,1713861043782,-1023.66,0.00011891,2]
[323271320,1713861043791,-500.0,0.00011891,2]
[323271321,1713861043800,-500.0,0.00011891,2]
[323271322,1713861043809,-500.0,0.00011891,2]
[323271323,1713861043818,-501.09331434,0.00011891,2]
[323271325,1713861043827,-500.0,0.00011891,2]
[323271327,1713861043836,-539.77,0.00011891,2]
[323271329,1713861043845,-606.67,0.00011891,2]
[323271331,1713861043854,-500.0,0.00011891,2]
[323271333,1713861043863,-500.0,0.00011891,2]
[323271335,1713861043872,-10005.87,0.00011891,2]
[323271337,1713861043881,-500.0,0.00011891,2]
[323271339,1713861043890,-503.35288842,0.00011891,2]
[323271341,1713861043899,-500.0,0.00011891,2]
[323271343,1713861043908,-2989.84,0.00011891,2]
[323271345,1713861043918,-500.0,0.00011891,2]
[323271347,1713861043933,-500.0,0.00011891,2]
[323271349,1713861043942,-570.93,0.00011891,2]
[323271351,1713861043951,-604.52,0.00011891,2]
[323271353,1713861043960,-500.0,0.00011891,2]
[323271355,1713861043969,-500.0,0.00011891,2]
[323271357,1713861043978,-500.0,0.00011891,2]
[323271359,1713861043987,-500.0,0.00011891,2]
[323271361,1713861043996,-500.0,0.00011891,2]
[323271363,1713861044005,-3572.69,0.00011891,2]
[323271365,1713861044014,-500.0,0.00011891,2]
[323271367,1713861044023,-880.49,0.00011891,2]
[323271369,1713861044032,-500.0,0.00011891,2]
[323271371,1713861044041,-263.23456761,0.00011891,2]
[323271373,1713861044051,-500.0,0.00011891,2]
[323271375,1713861044060,-3507.07,0.00011891,2]
[323271377,1713861044069,-500.0,0.00011891,2]
[323271379,1713861044078,-500.0,0.00011891,2]
[323271381,1713861044087,-909.32,0.00011891,2]
[323271383,1713861044096,-500.0,0.00011891,2]
[323271385,1713861044105,-208.38556251,0.00011891,2]
[323271387,1713861044114,-500.0,0.00011891,2]
[323271389,1713861044123,-500.0,0.00011891,2]
[323271391,1713861044132,-558.39,0.00011891,2]
[323271393,1713861044142,-500.0,0.00011891,2]
[323271395,1713861044150,-1635.83,0.00011891,2]
[323271397,1713861044159,-2223.06,0.00011891,2]
[323271399,1713861044169,-500.0,0.00011891,2]
[323271401,1713861044178,-500.0,0.00011891,2]
[323271403,1713861044187,-500.0,0.00011891,2]
[323271405,1713861044197,-1042.52,0.00011891,2]
[323271407,1713861044206,-500.0,0.00011891,2]
[323271409,1713861044215,-467.98289917,0.00011891,2]
[323271411,1713861044224,-602.01,0.00011891,2]
[323271413,1713861044233,-500.0,0.00011891,2]
[323271415,1713861044242,-500.0,0.00011891,2]
[323271417,1713861044251,-207.02535933,0.00011891,2]
[323271419,1713861044260,-530.49,0.00011891,2]
[323271421,1713861044269,-1439.41,0.00011891,2]
[323271423,1713861044277,-500.0,0.00011891,2]
[323271425,1713861044286,-500.0,0.00011891,2]
[323271427,1713861044295,-500.0,0.00011891,2]
[323271429,1713861044304,-500.0,0.00011891,2]
[323271431,1713861044313,-500.0,0.00011891,2]
[323271433,1713861044322,-551.48475181,0.00011891,2]
[323271435,1713861044331,-6409.69,0.00011891,2]
[323271437,1713861044340,-6409.69,0.00011891,2]
[323271439,1713861044350,-6409.69,0.00011891,2]
[323271441,1713861044359,-6409.69,0.00011891,2]
[323271443,1713861044368,-6409.69,0.00011891,2]
[323271445,1713861044377,-500.0,0.00011891,2]
[323271447,1713861044386,-6409.69,0.00011891,2]
[323271449,1713861044399,-6409.69,0.00011891,2]
[323271451,1713861044408,-705.6,0.00011891,2]
[323271453,1713861044417,-6409.69,0.00011891,2]
[323271455,1713861044427,-6409.69,0.00011891,2]
[323271457,1713861044437,-6409.69,0.00011891,2]
[323271459,1713861044446,-500.0,0.00011891,2]
[323271461,1713861044455,-6409.69,0.00011891,2]
[323271463,1713861044464,-6409.69,0.00011891,2]
[323271465,1713861044473,-500.0,0.00011891,2]
[323271467,1713861044483,-6409.69,0.00011891,2]
[323271469,1713861044492,-6409.69,0.00011891,2]
[323271471,1713861044501,-6409.69,0.00011891,2]
[323271473,1713861044510,-6409.69,0.00011891,2]
[323271475,1713861044519,-6409.69,0.00011891,2]
[323271477,1713861044528,-6409.69,0.00011891,2]
[323271479,1713861044537,-6409.69,0.00011891,2]
[323271481,1713861044546,-6409.69,0.00011891,2]
[323271482,1713861044555,-500.0,0.00011891,2]
[323271484,1713861044563,-6409.69,0.00011891,2]
[323271485,1713861044572,-6409.69,0.00011891,2]
[323271487,1713861044582,-6409.69,0.00011891,2]
[323271489,1713861044591,-6409.75966508,0.00011891,2]
[323271491,1713861044600,-619.67,0.00011891,2]
[323271492,1713861044609,-500.0,0.00011891,2]
[323271494,1713861044618,-740.07,0.00011891,2]
[323271495,1713861044627,-500.0,0.00011891,2]
[323271497,1713861044636,-500.0,0.00011891,2]
[323271499,1713861044645,-500.0,0.00011891,2]
[323271500,1713861044654,-853.76,0.00011891,2]
[323271502,1713861044663,-500.0,0.00011891,2]
[323271504,1713861044673,-500.0,0.00011891,2]
[323271506,1713861044682,-499.37530364,0.00011891,2]
[323271507,1713861044691,-500.0,0.00011891,2]
[323271509,1713861044701,-509.90981004,0.00011891,2]
[323271511,1713861044710,-711.0,0.00011891,2]
[323271512,1713861044719,-500.0,0.00011891,2]
[323271514,1713861044729,-500.0,0.00011891,2]
[323271516,1713861044738,-500.83162997,0.00011891,2]
[323271517,1713861044747,-429.4750611,0.00011891,2]
[323271519,1713861044756,-500.0,0.00011891,2]
[323271521,1713861044765,-500.0,0.00011891,2]
[323271522,1713861044774,-546.42,0.00011891,2]
[323271524,1713861044783,-478.46933375,0.00011891,2]
[323271526,1713861044792,-500.0,0.00011891,2]
[323271527,1713861044801,-164.43860217,0.00011891,2]
[323271529,1713861044810,-500.0,0.00011891,2]
[323271531,1713861044819,-500.0,0.00011891,2]
[323271533,1713861044831,-500.0,0.00011891,2]
[323271534,1713861044840,-500.0,0.00011891,2]
[323271536,1713861044850,-11370.26,0.00011891,2]
[323271538,1713861044859,-500.0,0.00011891,2]
[323271540,1713861044868,-574.23,0.00011891,2]
[323271541,1713861044877,-2247.28,0.00011891,2]
[323271543,1713861044887,-500.0,0.00011891,2]
[323271545,1713861044896,-1693.0,0.00011891,2]
[323271546,1713861044905,-500.0,0.00011891,2]
[323271548,1713861044914,-500.0,0.00011891,2]
[323271550,1713861044923,-4166.0,0.00011891,2]
[323271552,1713861044933,-500.0,0.00011891,2]
[323271554,1713861044942,-500.0,0.00011891,2]
[323271555,1713861044952,-501.19383954,0.00011891,2]
[323271557,1713861044960,-500.0,0.00011891,2]
[323271559,1713861044970,-2151.28,0.00011891,2]
[323271561,1713861044979,-500.0,0.00011891,2]
[323271562,1713861044988,-500.0,0.00011891,2]
[323271564,1713861044997,-500.0,0.00011891,2]
[323271566,1713861045005,-500.0,0.00011891,2]
[323271568,1713861045014,-662.37,0.00011891,2]
[323271569,1713861045024,-500.0,0.00011891,2]
[323271571,1713861045033,-501.59399651,0.00011891,2]
[323271573,1713861045041,-1926.21,0.00011891,2]
[323271575,1713861045052,-500.0,0.00011891,2]
[323271576,1713861045062,-500.0,0.00011891,2]
[323271578,1713861045072,-1336.63,0.00011891,2]
[323271580,1713861045082,-500.0,0.00011891,2]
[323271582,1713861045091,-362.97780513,0.00011891,2]
[323271583,1713861045100,-500.0,0.00011891,2]
[323271585,1713861045109,-2611.25,0.00011891,2]
[323271587,1713861045118,-500.0,0.00011891,2]
[323271589,1713861045127,-500.0,0.00011891,2]
[323271591,1713861045137,-554.36,0.00011891,2]
[323271592,1713861045147,-500.0,0.00011891,2]
[323271594,1713861045156,-500.0,0.00011891,2]
[323271596,1713861045165,-500.0,0.00011891,2]
[323271598,1713861045174,-648.37893823,0.00011891,2]
[323271599,1713861045184,-1645.79,0.00011891,2]
[323271601,1713861045193,-579.93,0.00011891,2]
[323271603,1713861045202,-500.0,0.00011891,2]
[323271605,1713861045211,-500.0,0.00011891,2]
[323271606,1713861045220,-500.0,0.00011891,2]
[323271608,1713861045229,-1095.5,0.00011891,2]
[323271610,1713861045238,-500.0,0.00011891,2]
[323271612,1713861045248,-584.02317301,0.00011891,2]
[323271613,1713861045258,-500.0,0.00011891,2]
[323271615,1713861045267,-500.0,0.00011891,2]
[323271617,1713861045276,-2027.48,0.00011891,2]
[323271619,1713861045285,-500.0,0.00011891,2]
[323271621,1713861045294,-500.0,0.00011891,2]
[323271622,1713861045303,-500.0,0.00011891,2]
[323271641,1713861045521,-1341.5,0.00011891,2]
[323271643,1713861045531,-1676.07,0.00011891,2]
[323271644,1713861045540,-500.0,0.00011891,2]
[323271645,1713861045549,-500.0,0.00011891,2]
[323271646,1713861045559,-500.0,0.00011892,2]
[323271647,1713861045568,-500.0,0.00011892,2]
[323271648,1713861045578,-323.15403618,0.00011892,2]
[323271649,1713861045587,-1221.59,0.00011892,2]
[323271650,1713861045597,-2465.55,0.00011892,2]
[323271651,1713861045606,-1246.41,0.00011892,2]
[323271652,1713861045615,-500.0,0.00011892,2]
[323271654,1713861045624,-500.0,0.00011892,2]
[323271655,1713861045634,-500.0,0.00011892,2]
[323271657,1713861045643,-500.0,0.00011892,2]
[323271659,1713861045652,-500.0,0.00011892,2]
[323271661,1713861045661,-1629.2,0.00011892,2]
[323271664,1713861045671,-500.0,0.00011892,2]
[323271666,1713861045680,-500.0,0.00011892,2]
[323271667,1713861045689,-500.0,0.00011892,2]
[323271669,1713861045698,-500.0,0.00011892,2]
[323271670,1713861045707,-1975.23,0.00011892,2]
[323271671,1713861045717,-500.0,0.00011892,2]
[323271672,1713861045726,-500.0,0.00011892,2]
[323271673,1713861045735,-727.43,0.00011892,2]
[323271674,1713861045744,-1291.41,0.00011892,2]
[323271675,1713861045754,-520.57,0.00011892,2]
[323271676,1713861045763,-1662.46,0.00011892,2]
[323271677,1713861045772,-612.45,0.00011892,2]
[323271678,1713861045781,-500.0,0.00011892,2]
[323271679,1713861045791,-595.86137244,0.00011892,2]
[323271680,1713861045800,-500.0,0.00011892,2]
[323271681,1713861045809,-500.0,0.00011892,2]
[323271682,1713861045819,-500.0,0.00011892,2]
[323271683,1713861045829,-500.0,0.00011892,2]
[323271684,1713861045839,-500.0,0.00011892,2]
[323271685,1713861045848,-812.93,0.00011892,2]
[323271686,1713861045857,-500.0,0.00011892,2]
[323271687,1713861045867,-500.0,0.00011892,2]
[323271688,1713861045877,-500.0,0.00011892,2]
[323271689,1713861045886,-500.0,0.00011892,2]
[323271690,1713861045896,-500.0,0.00011892,2]
[323271691,1713861045905,-2315.55,0.00011892,2]
[323271692,1713861045915,-621.37,0.00011892,2]
[323271693,1713861045924,-523.60818746,0.00011892,2]
[323271694,1713861045934,-484.32336462,0.00011892,2]
[323271695,1713861045943,-228.50545216,0.00011892,2]
[323271696,1713861045953,-500.0,0.00011892,2]
[323271697,1713861045963,-1701.41,0.00011892,2]
[323271698,1713861045972,-413.15996943,0.00011892,2]
[323271699,1713861045982,-500.0,0.00011892,2]
[323271700,1713861045992,-444.3911085,0.00011893,2]
[323271701,1713861046002,-500.0,0.00011893,2]
[323271702,1713861046012,-500.0,0.00011893,2]
[323271703,1713861046022,-500.0,0.00011893,2]
[323271704,1713861046031,-215.40824051,0.00011893,2]
[323271705,1713861046041,-539.21699589,0.00011893,2]
[323271706,1713861046050,-500.0,0.00011893,2]
[323271707,1713861046059,-500.0,0.00011893,2]
[323271708,1713861046069,-500.0,0.00011893,2]
[323271709,1713861046079,-656.76,0.00011893,2]
[323271710,1713861046088,-500.0,0.00011893,2]
[323271711,1713861046098,-500.0,0.00011893,2]
[323271712,1713861046107,-500.0,0.00011893,2]
[323271713,1713861046116,-500.48,0.00011893,2]
[323271714,1713861046125,-500.0,0.00011893,2]
[323271715,1713861046134,-500.0,0.00011893,2]
[323271716,1713861046143,-500.0,0.00011893,2]
[323271717,1713861046152,-500.0,0.00011893,2]
[323271718,1713861046162,-500.0,0.00011893,2]
[323271719,1713861046172,-500.0,0.00011893,2]
[323271720,1713861046181,-855.71,0.00011893,2]
[323271721,1713861046191,-500.0,0.00011893,2]
[323271722,1713861046200,-803.14,0.00011893,2]
[323271723,1713861046210,-500.0,0.00011893,2]
[323271724,1713861046220,-757.82,0.00011893,2]
[323271725,1713861046229,-500.0,0.00011893,2]
[323271726,1713861046238,-500.0,0.00011893,2]
[323271727,1713861046249,-744.52,0.00011893,2]
[323271728,1713861046259,-503.21227172,0.00011893,2]
[323271729,1713861046269,-500.69808635,0.00011893,2]
[323271730,1713861046279,-537.68733816,0.00011893,2]
[323271731,1713861046288,-500.04,0.00011893,2]
[323271732,1713861046298,-500.0,0.00011893,2]
[323271733,1713861046308,-593.89820622,0.00011893,2]
[323271734,1713861046317,-230.05339857,0.00011893,2]
[323271735,1713861046329,-500.0,0.00011893,2]
[323271736,1713861046338,-297.43613427,0.00011893,2]
[323271737,1713861046348,-500.0,0.00011893,2]
[323271738,1713861046359,-500.0,0.00011893,2]
[323271739,1713861046368,-402.97419599,0.00011893,2]
[323271740,1713861046378,-500.0,0.00011893,2]
[323271742,1713861046387,-500.0,0.00011893,2]
[323271744,1713861046399,-500.0,0.00011893,2]
[323271746,1713861046408,-500.0,0.00011893,2]
[323271748,1713861046417,-500.0,0.00011893,2]
[323271750,1713861046427,-500.0,0.00011893,2]
[323271751,1713861046438,-500.0,0.00011893,2]
[323271752,1713861046447,-500.0,0.00011893,2]
[323271753,1713861046457,-561.71,0.00011893,2]
[323271754,1713861046466,-314.75878325,0.00011893,2]
[323271755,1713861046478,-600.75,0.00011893,2]
[323271756,1713861046488,-505.97,0.00011893,2]
[323271757,1713861046498,-500.0,0.00011893,2]
[323271758,1713861046507,-150.0,0.00011895,2]
[323271759,1713861046517,-150.0,0.00011897,2]
[323271760,1713861046526,-150.0,0.00011903,2]
[323271761,1713861046536,-150.0,0.00011913,2]
[323271762,1713861046545,-150.0,0.00011917,2]